bitfinex/quotes_BTCUSD_20250519
["timestamp","ask_amount","ask_price","bid_price","bid_amount"]
[1747665629874,0.42499669,103810.0,103800.0,0.21194594]
[1747665630102,0.43462958,103810.0,103800.0,0.23121329]
[1747665630488,0.43462958,103810.0,103800.0,0.21194585]
[1747665630815,0.07103289,103810.0,103800.0,0.22157948]
[1747665630948,0.04956447,103810.0,103800.0,0.24084628]
[1747665631145,0.10032977,103810.0,103800.0,0.24084628]
[1747665631349,0.10996266,103810.0,103800.0,0.24084628]
[1747665631873,0.25383958,103810.0,103800.0,0.24084628]
[1747665632629,0.07846266,103810.0,103800.0,0.24084628]
[1747665633161,0.06882977,103810.0,103800.0,0.24084628]
[1747665633613,0.06882968,103810.0,103800.0,0.03853415]
[1747665633767,0.07846247,103810.0,103800.0,0.24084628]
[1747665634932,0.06882968,103810.0,103800.0,0.24084628]
[1747665635137,0.01936447,103810.0,103800.0,0.24084628]
[1747665635342,0.03862987,103810.0,103800.0,0.24084628]
[1747665636756,0.03862977,103810.0,103800.0,0.24084628]
[1747665638809,0.03862977,103810.0,103800.0,0.24686604]
[1747665639227,0.03862959,103810.0,103800.0,0.24686604]
[1747665640278,0.0001,103810.0,103800.0,0.24686604]
[1747665640484,0.0001,103810.0,103800.0,0.96455629]
[1747665640717,0.0001,103810.0,103800.0,0.98126043]
[1747665640929,0.0001,103810.0,103800.0,0.99126043]
[1747665641354,0.0001,103810.0,103800.0,0.99226043]
[1747665641458,0.0204828,103830.0,103820.0,0.63887699]
[1747665641664,0.02062688,103830.0,103820.0,0.73618639]
[1747665641865,0.02062688,103830.0,103820.0,0.94424615]
[1747665642288,0.02062688,103830.0,103820.0,1.15295029]
[1747665643133,0.01462688,103830.0,103820.0,0.61491029]
[1747665643342,0.01462688,103830.0,103820.0,0.61891029]
[1747665643554,0.01462688,103830.0,103820.0,0.62313447]
[1747665644386,0.01472688,103830.0,103820.0,0.62313447]
[1747665645043,0.01472688,103830.0,103820.0,0.40659362]
[1747665645251,0.01472688,103830.0,103820.0,0.37399362]
[1747665646718,0.01472688,103830.0,103820.0,0.40689362]
[1747665647111,0.01472688,103830.0,103820.0,0.42143447]
[1747665649235,0.01472688,103830.0,103820.0,0.76143447]
[1747665649436,0.01472688,103830.0,103820.0,0.77143447]
[1747665650782,0.00872688,103830.0,103820.0,0.77143447]
[1747665651768,0.00872688,103830.0,103820.0,0.76721029]
[1747665653076,0.00872688,103830.0,103820.0,0.75721029]
[1747665653308,0.00872688,103830.0,103820.0,0.76721029]
[1747665654711,0.00872688,103830.0,103820.0,0.75721029]
[1747665654863,0.00872688,103830.0,103820.0,0.95913029]
[1747665658175,0.00872688,103830.0,103820.0,0.75721029]
[1747665658694,0.00272688,103830.0,103820.0,0.75721029]
[1747665664737,0.00272688,103830.0,103820.0,0.76721029]
[1747665665171,0.07144445,103860.0,103850.0,0.22147215]
[1747665665871,0.07144445,103860.0,103850.0,0.22749191]
[1747665666304,0.06544445,103860.0,103850.0,0.22749191]
[1747665666536,0.00464445,103860.0,103850.0,0.34034216]
[1747665666802,0.00464445,103860.0,103850.0,0.40941571]
[1747665667020,0.00464445,103860.0,103850.0,0.33247486]
[1747665667459,0.06744445,103860.0,103850.0,0.23616546]
[1747665668300,0.06744445,103860.0,103850.0,0.24039017]
[1747665668660,0.06744445,103860.0,103850.0,0.23939017]
[1747665668859,0.34409356,103860.0,103850.0,0.23939017]
[1747665669062,0.34409356,103860.0,103850.0,0.24239017]
[1747665669063,0.33446605,103860.0,103850.0,0.24239017]
[1747665669312,0.54565374,103860.0,103850.0,0.24239017]
[1747665669453,0.26900445,103860.0,103850.0,0.24639017]
[1747665669857,0.28825974,103860.0,103850.0,0.24239017]
[1747665670083,0.55528134,103860.0,103850.0,0.24239017]
[1747665670289,1.6541,103860.0,103850.0,0.01691802]
[1747665670490,1.289769,103860.0,103850.0,0.01691802]
[1747665670659,1.28014112,103860.0,103850.0,0.02091802]
[1747665671020,1.28014112,103860.0,103850.0,0.01001976]
[1747665671149,1.64447212,103860.0,103850.0,0.01001976]
[1747665671661,1.64447212,103860.0,103850.0,0.004]
[1747665671853,1.64447212,103860.0,103850.0,0.002]
[1747665672101,0.60551453,103850.0,103840.0,0.00422471]
[1747665672310,0.92053613,103850.0,103840.0,0.01024232]
[1747665672529,0.24174843,103850.0,103840.0,0.23173579]
[1747665672690,0.27063475,103850.0,103840.0,0.23173597]
[1747665672896,0.31256383,103850.0,103840.0,0.22210624]
[1747665673112,0.56995644,103850.0,103840.0,0.23173579]
[1747665673524,0.56995644,103850.0,103840.0,0.23373579]
[1747665673698,0.56995644,103850.0,103840.0,0.24044142]
[1747665673898,0.76254273,103850.0,103840.0,0.23081206]
[1747665674100,0.34474445,103860.0,103850.0,0.22147215]
[1747665674300,0.00474445,103860.0,103850.0,0.22147215]
[1747665674509,0.01437196,103860.0,103850.0,0.23419539]
[1747665674714,0.02399965,103860.0,103850.0,0.23419539]
[1747665674939,0.01437196,103860.0,103850.0,0.23419539]
[1747665675341,0.00474445,103860.0,103850.0,0.23409539]
[1747665675546,0.00474445,103860.0,103850.0,0.23509539]
[1747665675751,0.00474445,103860.0,103850.0,0.33240479]
[1747665676359,0.00474445,103860.0,103850.0,0.33340479]
[1747665678551,0.01437214,103860.0,103850.0,0.33340479]
[1747665678787,0.00474445,103860.0,103850.0,0.23609539]
[1747665679157,0.00474445,103860.0,103850.0,0.33340479]
[1747665681028,0.11766007,103870.0,103860.0,0.22145082]
[1747665681376,0.18090409,103870.0,103860.0,0.22746843]
[1747665681778,0.19053095,103870.0,103860.0,0.22746843]
[1747665682013,0.20015772,103870.0,103860.0,0.23417406]
[1747665682193,0.19415772,103870.0,103860.0,0.23417406]
[1747665682719,0.12143068,103870.0,103860.0,0.23417406]
[1747665683071,0.0290246,103870.0,103860.0,0.23417406]
[1747665683272,0.2960462,103870.0,103860.0,0.23417406]
[1747665683643,0.28651934,103870.0,103860.0,0.23417406]
[1747665683788,0.00024402,103870.0,103860.0,0.23417406]
[1747665683993,0.0291245,103870.0,103860.0,0.23417406]
[1747665685433,0.2961461,103870.0,103860.0,0.23417406]
[1747665686031,0.0291245,103870.0,103860.0,0.23417406]
[1747665687786,0.5634217,103870.0,103860.0,0.22454637]
[1747665687983,0.54416863,103870.0,103860.0,0.01272324]
[1747665688192,0.88416863,103870.0,103860.0,0.01272324]
[1747665688405,6.44625763,103870.0,103860.0,0.00670563]
[1747665688564,0.20219507,103860.0,103850.0,0.00423803]
[1747665688769,6.27161467,103860.0,103850.0,0.00423803]
[1747665689031,1.07385667,103860.0,103850.0,0.00423803]
[1747665689167,0.80683507,103860.0,103850.0,0.00423803]
[1747665689552,1.07385667,103860.0,103850.0,0.20645275]
[1747665689773,1.08348473,103860.0,103850.0,0.20645275]
[1747665689953,1.07748473,103860.0,103850.0,0.21808183]
[1747665690102,1.07748473,103860.0,103850.0,0.20845275]
[1747665690309,1.06785667,103860.0,103850.0,0.20421472]
[1747665690900,0.56899507,103860.0,103850.0,0.21384371]
[1747665691270,1.2642328,103860.0,103850.0,0.21384371]
[1747665691408,1.2642328,103860.0,103850.0,0.22347261]
[1747665691831,1.2950328,103860.0,103850.0,0.22347261]
[1747665692264,1.00683954,103860.0,103850.0,0.23310141]
[1747665692624,0.81427263,103860.0,103850.0,0.23310141]
[1747665692834,1.07166589,103860.0,103850.0,0.24273003]
[1747665693033,1.07166589,103860.0,103850.0,0.24874682]
[1747665693472,1.27386114,103860.0,103850.0,0.2391182]
[1747665693773,1.26433326,103860.0,103850.0,0.2391182]
[1747665693907,0.99731166,103860.0,103850.0,0.2391182]
[1747665694113,1.26433326,103860.0,103850.0,0.2391182]
[1747665694319,1.26433326,103860.0,103850.0,0.2294894]
[1747665694510,1.27617685,103860.0,103850.0,0.00801679]
[1747665694923,1.27617685,103860.0,103850.0,0.002]
[1747665696858,1.68850785,103860.0,103850.0,0.002]
[1747665697332,6.98357525,103860.0,103850.0,0.002]
[1747665697519,6.88026585,103860.0,103850.0,0.002]
[1747665697769,7.29614585,103860.0,103850.0,0.002]
[1747665698220,7.29614585,103860.0,103850.0,0.001]
[1747665698697,0.20225339,103830.0,103820.0,0.00423803]
[1747665698839,0.93539499,103830.0,103820.0,0.01387008]
[1747665699037,0.66837339,103830.0,103820.0,0.22216157]
[1747665699344,0.93539499,103830.0,103820.0,0.22216157]
[1747665699591,1.165867,103830.0,103820.0,0.01025656]
[1747665699771,1.6661364,103830.0,103820.0,0.00423803]
[1747665699952,0.03853015,103810.0,103800.0,0.1081043]
[1747665700152,0.03853015,103810.0,103800.0,0.11426752]
[1747665700552,0.02889726,103810.0,103800.0,0.12096598]
[1747665700978,0.03853005,103810.0,103800.0,0.12096598]
[1747665701380,0.24007005,103810.0,103800.0,0.11348354]
[1747665702006,0.22080447,103810.0,103800.0,0.11348354]
[1747665702211,0.0001,103810.0,103800.0,0.14548354]
[1747665702414,0.0001,103810.0,103800.0,0.16938508]
[1747665702838,0.00973224,103810.0,103800.0,0.12915164]
[1747665702969,0.03862996,103810.0,103800.0,0.12915164]
[1747665703330,0.0001,103810.0,103800.0,0.12915164]
[1747665703556,0.0001,103810.0,103800.0,0.16125164]
[1747665704004,0.0001,103810.0,103800.0,0.25856104]
[1747665705139,0.0001,103810.0,103800.0,0.26524977]
[1747665705357,0.95849509,103830.0,103820.0,0.22153641]
[1747665705580,1.03289413,103830.0,103820.0,0.22153641]
[1747665705803,1.03289413,103830.0,103820.0,0.23116781]
[1747665705804,1.2255165,103830.0,103820.0,0.23116781]
[1747665706016,1.23514753,103830.0,103820.0,0.21190492]
[1747665706223,1.22551696,103830.0,103820.0,0.2215366]
[1747665706860,1.22651696,103830.0,103820.0,0.2215366]
[1747665707575,0.62138338,103830.0,103820.0,0.2215366]
[1747665707712,1.02426338,103830.0,103820.0,0.231168]
[1747665707914,1.22651696,103830.0,103820.0,0.2215366]
[1747665708111,1.22651696,103830.0,103820.0,0.23116809]
[1747665708368,1.22661696,103830.0,103820.0,0.23116809]
[1747665708526,1.23624808,103830.0,103820.0,0.23116809]
[1747665708941,1.23624808,103830.0,103820.0,0.2215366]
[1747665709141,1.22661724,103830.0,103820.0,0.2215366]
[1747665709565,1.22661724,103830.0,103820.0,0.22461802]
[1747665711292,1.22661724,103830.0,103820.0,0.21498634]
[1747665711513,1.22661724,103830.0,103820.0,0.22461802]
[1747665711737,1.22661724,103830.0,103820.0,0.23424961]
[1747665711938,0.5559015,103830.0,103820.0,0.24388101]
[1747665712148,0.77660282,103830.0,103820.0,0.24388101]
[1747665712614,0.9788564,103830.0,103820.0,0.24388101]
[1747665713038,0.97885714,103830.0,103820.0,0.24388101]
[1747665713519,1.24587874,103830.0,103820.0,0.24388101]
[1747665714364,1.24587874,103830.0,103820.0,0.23424961]
[1747665714575,0.82373724,103830.0,103820.0,0.21498643]
[1747665714819,1.2169863,103830.0,103820.0,0.20535457]
[1747665715039,0.86887527,103830.0,103820.0,0.20535448]
[1747665715249,1.27175527,103830.0,103820.0,0.20535448]
[1747665715460,1.27175527,103830.0,103820.0,0.21498634]
[1747665716202,1.52914575,103830.0,103820.0,0.00308142]
[1747665716427,1.77176455,103830.0,103820.0,0.00308142]
[1747665716863,1.67445515,103830.0,103820.0,0.00308142]
[1747665718153,1.67445515,103830.0,103800.0,0.00014408]
[1747665718154,0.61522496,103810.0,103800.0,0.00014408]
[1747665718359,1.28508656,103810.0,103800.0,0.00014408]
[1747665719000,1.28238656,103810.0,103800.0,0.00014408]
[1747665719214,1.64671756,103810.0,103800.0,0.00014408]
[1747665719422,6.94178496,103810.0,103800.0,0.00214408]
[1747665719634,6.94178496,103810.0,103800.0,0.00414408]
[1747665719865,6.95611381,103810.0,103800.0,0.00214408]
[1747665720083,6.95611381,103810.0,103800.0,0.00014408]
[1747665720290,6.95611381,103810.0,103800.0,0.00114408]
[1747665720703,6.95711381,103810.0,103800.0,0.00114408]
[1747665721138,6.18994281,103810.0,103800.0,0.00114408]
[1747665721338,6.59286281,103810.0,103800.0,0.00114408]
[1747665721749,6.18994281,103810.0,103800.0,0.00014408]
[1747665722083,0.99218481,103810.0,103800.0,0.00014408]
[1747665722289,1.39506481,103810.0,103800.0,0.00014408]
[1747665723973,0.94765596,103810.0,103800.0,0.00014408]
[1747665724222,1.32017596,103810.0,103800.0,0.00014408]
[1747665724872,0.98235596,103810.0,103800.0,0.00014408]
[1747665725074,6.85005556,103810.0,103800.0,0.00014408]
[1747665725284,6.38159396,103810.0,103800.0,0.00014408]
[1747665725483,6.68034336,103810.0,103800.0,0.00014408]
[1747665725864,6.94736496,103810.0,103800.0,0.00014408]
[1747665727686,7.00518496,103810.0,103800.0,0.00014408]
[1747665728078,7.01983295,103810.0,103800.0,0.00014408]
[1747665728292,7.02083295,103810.0,103800.0,0.00014408]
[1747665728743,0.20235046,103780.0,103770.0,0.31816615]
[1747665728951,0.87229206,103780.0,103770.0,0.3186466]
[1747665729151,0.4221905,103780.0,103770.0,0.32172888]
[1747665729368,0.69884768,103780.0,103770.0,0.35202888]
[1747665730004,0.00963511,103780.0,103770.0,0.3913502]
[1747665730222,0.40296,103780.0,103770.0,0.36244059]
[1747665730417,0.41259493,103780.0,103770.0,0.36244059]
[1747665730856,0.44150083,103780.0,103770.0,0.28506741]
[1747665731073,0.01926995,103780.0,103770.0,0.28706741]
[1747665731396,0.00963493,103780.0,103770.0,0.28706741]
[1747665731599,0.19756676,103800.0,103780.0,0.27388585]
[1747665731903,0.23042265,103790.0,103780.0,0.28352078]
[1747665732109,0.67483752,103800.0,103790.0,0.22160017]
[1747665732347,0.22564234,103800.0,103790.0,0.28510017]
[1747665732576,0.23527597,103800.0,103790.0,0.28510017]
[1747665733115,0.00485592,103800.0,103790.0,0.28510017]
[1747665733313,0.00485592,103800.0,103790.0,0.29112021]
[1747665733513,0.02612252,103800.0,103790.0,0.29420314]
[1747665733714,0.50508969,103800.0,103790.0,0.07260297]
[1747665733941,0.48382309,103800.0,103790.0,0.22106897]
[1747665734140,0.03475653,103800.0,103790.0,0.30193771]
[1747665734340,0.00685592,103800.0,103790.0,0.31157189]
[1747665734540,0.02612252,103800.0,103790.0,0.31157189]
[1747665734780,0.02512243,103800.0,103790.0,0.31157189]
[1747665734935,0.02512234,103800.0,103790.0,0.31157189]
[1747665735156,0.00585592,103800.0,103790.0,0.31157189]
[1747665735594,0.01548899,103800.0,103790.0,0.31157189]
[1747665736138,0.01548899,103800.0,103790.0,0.31581536]
[1747665736850,0.02512234,103800.0,103790.0,0.31581536]
[1747665736993,0.02512225,103800.0,103790.0,0.31581536]
[1747665737199,0.50408942,103800.0,103790.0,0.31581536]
[1747665737441,0.50408942,103800.0,103790.0,0.2349469]
[1747665737682,0.51372333,103800.0,103790.0,0.23494699]
[1747665737835,0.30177739,103800.0,103790.0,0.24458136]
[1747665738035,0.00585592,103800.0,103790.0,0.31621554]
[1747665738334,0.01548918,103800.0,103790.0,0.31621554]
[1747665738897,0.02512253,103800.0,103790.0,0.31197207]
[1747665739942,0.04438969,103800.0,103790.0,0.31197207]
[1747665740137,0.0443896,103800.0,103790.0,0.24997207]
[1747665740313,0.3114112,103800.0,103790.0,0.24997207]
[1747665740525,0.32104492,103800.0,103790.0,0.24997207]
[1747665740922,0.51372369,103800.0,103790.0,0.24033789]
[1747665741124,0.51372425,103800.0,103790.0,0.24033789]
[1747665741487,0.50409081,103800.0,103790.0,0.23070361]
[1747665741683,0.50409081,103800.0,103790.0,0.24033789]
[1747665742842,0.50409081,103800.0,103790.0,0.23070361]
[1747665743035,0.49445718,103800.0,103790.0,0.22106924]
[1747665743278,0.81518965,103800.0,103790.0,0.00910297]
[1747665743483,0.87738965,103800.0,103790.0,0.00910297]
[1747665743865,0.87738965,103800.0,103790.0,0.00308293]
[1747665744407,0.81518965,103800.0,103790.0,0.20541437]
[1747665744630,0.54816805,103800.0,103790.0,0.21143495]
[1747665744831,0.00585592,103800.0,103790.0,0.31547289]
[1747665745229,0.00585592,103800.0,103790.0,0.32218094]
[1747665745732,0.00585592,103800.0,103790.0,0.43403119]
[1747665746765,0.00585592,103800.0,103790.0,0.42049034]
[1747665746948,0.00485592,103800.0,103790.0,0.42028022]
[1747665747144,0.00485592,103800.0,103790.0,0.41928022]
[1747665747345,0.00485592,103800.0,103790.0,0.42028022]
[1747665747880,0.00485592,103800.0,103790.0,0.42128022]
[1747665748081,0.85875943,103820.0,103810.0,0.21192496]
[1747665748306,0.88925943,103820.0,103810.0,0.21192496]
[1747665748575,0.88925943,103820.0,103810.0,0.21192515]
[1747665748776,0.87962775,103820.0,103810.0,0.21192515]
[1747665749286,0.87976647,103820.0,103810.0,0.21192515]
[1747665749836,0.88176647,103820.0,103810.0,0.21192515]
[1747665750039,0.61474487,103820.0,103810.0,0.22155766]
[1747665750247,1.25532647,103820.0,103810.0,0.22155766]
[1747665750489,1.25532647,103820.0,103810.0,0.19265966]
[1747665750707,0.02889754,103810.0,103800.0,0.20231203]
[1747665750889,0.30555193,103810.0,103800.0,0.22157883]
[1747665751087,0.01926493,103810.0,103800.0,0.22157883]
[1747665751279,0.02889717,103810.0,103800.0,0.22759834]
[1747665751498,0.02889707,103810.0,103800.0,0.22759834]
[1747665751930,0.01926456,103810.0,103800.0,0.22759834]
[1747665752288,0.01926456,103810.0,103800.0,0.23430799]
[1747665752524,0.02889717,103810.0,103800.0,0.23430799]
[1747665752923,0.02989717,103810.0,103800.0,0.23430799]
[1747665753195,0.02026456,103810.0,103800.0,0.23430799]
[1747665753425,0.02999707,103810.0,103800.0,0.22759834]
[1747665755541,0.03962977,103810.0,103800.0,0.22759834]
[1747665755742,0.02999707,103810.0,103800.0,0.26079834]
[1747665755947,0.01073214,103810.0,103800.0,0.26079834]
[1747665756171,0.02036456,103810.0,103800.0,0.26079834]
[1747665756617,0.0011,103810.0,103800.0,0.29159834]
[1747665757018,0.0011,103810.0,103800.0,0.2983046]
[1747665757338,0.0011,103810.0,103800.0,0.41015485]
[1747665758635,0.0011,103810.0,103800.0,0.8317715]
[1747665759361,0.25168267,103840.0,103830.0,0.2215148]
[1747665759568,0.24205285,103840.0,103830.0,0.2215148]
[1747665759774,0.2613125,103840.0,103830.0,0.2215148]
[1747665759930,0.25168258,103840.0,103830.0,0.22753431]
[1747665760130,0.2613125,103840.0,103830.0,0.23061545]
[1747665760569,0.22153928,103840.0,103830.0,0.23061545]
[1747665760812,0.22453928,103840.0,103830.0,0.23061545]
[1747665760957,0.2341691,103840.0,103830.0,0.23061545]
[1747665761354,0.24279911,103840.0,103830.0,0.23061545]
[1747665761554,1.10852471,103840.0,103830.0,0.00910065]
[1747665761780,1.08926543,103840.0,103830.0,0.21135423]
[1747665762199,1.0670056,103840.0,103830.0,0.19570369]
[1747665762353,1.0670056,103840.0,103830.0,0.20533472]
[1747665762561,1.0680056,103840.0,103830.0,0.20533472]
[1747665762815,1.0680056,103840.0,103830.0,0.19570369]
[1747665763042,0.8667256,103840.0,103830.0,0.00308114]
[1747665763245,1.366555,103840.0,103830.0,0.00308114]
[1747665764439,1.4638644,103840.0,103830.0,0.00308114]
[1747665764737,0.1926411,103820.0,103810.0,0.21512008]
[1747665764950,1.29533774,103820.0,103810.0,0.0031953]
[1747665765182,1.28570634,103820.0,103810.0,0.0031953]
[1747665765608,1.28570634,103820.0,103810.0,0.19585496]
[1747665765810,1.27970634,103820.0,103810.0,0.19574151]
[1747665766016,1.27970634,103820.0,103810.0,0.19874151]
[1747665766232,1.27970634,103820.0,103810.0,0.00608185]
[1747665766443,1.27970634,103820.0,103810.0,0.00508185]
[1747665766641,1.27770634,103820.0,103810.0,0.00508185]
[1747665766862,1.27770634,103820.0,103810.0,0.00408185]
[1747665767244,0.87522634,103820.0,103810.0,0.2073744]
[1747665767457,1.27770634,103820.0,103810.0,0.19774151]
[1747665767758,1.26807466,103820.0,103810.0,0.00508185]
[1747665768792,1.41338406,103820.0,103810.0,0.00508185]
[1747665769130,1.42852564,103820.0,103810.0,0.00508185]
[1747665770628,1.42852564,103820.0,103810.0,0.002]
[1747665770885,1.42862564,103820.0,103810.0,0.002]
[1747665773443,1.42262564,103820.0,103810.0,0.002]
[1747665773753,0.20229245,103810.0,103800.0,0.22171669]
[1747665774116,0.20229245,103810.0,103800.0,0.21208306]
[1747665774657,0.20229245,103810.0,103800.0,0.21810283]
[1747665774953,0.20229245,103810.0,103800.0,0.21155114]
[1747665775705,0.20229245,103810.0,103800.0,0.21255114]
[1747665775903,0.20229245,103810.0,103800.0,0.21355114]
[1747665776484,0.19265966,103810.0,103800.0,0.21355114]
[1747665776778,0.19265966,103810.0,103800.0,0.01124061]
[1747665777205,0.19275966,103810.0,103800.0,0.01124061]
[1747665777711,0.45978126,103810.0,103800.0,0.01124061]
[1747665777917,0.45978126,103810.0,103800.0,0.00522084]
[1747665778423,0.86328126,103810.0,103800.0,0.00522084]
[1747665778621,0.96059066,103810.0,103800.0,0.00522084]
[1747665779873,0.96059066,103810.0,103800.0,0.00113872]
[1747665780076,0.96059066,103810.0,103800.0,0.00013872]
[1747665780282,6.42537026,103810.0,103800.0,0.00013872]
[1747665780487,6.42637026,103810.0,103800.0,0.00013872]
[1747665781359,6.48419026,103810.0,103800.0,0.00013872]
[1747665781595,6.58149966,103810.0,103800.0,0.00013872]
[1747665781996,0.01926902,103790.0,103780.0,0.00308283]
[1747665782189,1.08983681,103790.0,103780.0,0.00356328]
[1747665782395,6.28759481,103790.0,103780.0,0.00048045]
[1747665782608,6.62759481,103790.0,103780.0,0.00048045]
[1747665782812,6.72490421,103790.0,103780.0,0.00048045]
[1747665783257,6.72490421,103790.0,103780.0,0.00448045]
[1747665783429,6.72490421,103790.0,103780.0,0.00148045]
[1747665783642,7.71970421,103790.0,103780.0,0.00048045]
[1747665784390,7.31736421,103790.0,103780.0,0.00048045]
[1747665784622,6.65303321,103790.0,103780.0,0.00048045]
[1747665784829,2.12473681,103790.0,103780.0,0.00048045]
[1747665785793,1.40693368,103790.0,103780.0,0.1931958]
[1747665786173,2.07639528,103790.0,103780.0,0.00048045]
[1747665786582,2.23740468,103790.0,103780.0,0.00048045]
[1747665787279,7.43516268,103790.0,103780.0,0.00048045]
[1747665787636,2.14009528,103790.0,103780.0,0.00048045]
[1747665787841,2.07639528,103790.0,103780.0,0.00048045]
[1747665788048,2.06676091,103790.0,103780.0,0.00048045]
[1747665789119,1.66432091,103790.0,103780.0,0.00048045]
[1747665789264,2.06680091,103790.0,103780.0,0.00048045]
[1747665789651,2.06680091,103790.0,103780.0,0.1931958]
[1747665789828,2.06680091,103790.0,103780.0,0.00048045]
[1747665790064,1.41656851,103790.0,103780.0,0.21246668]
[1747665790262,0.42212665,103790.0,103780.0,0.28640179]
[1747665790463,0.29292102,103790.0,103780.0,0.28640179]
[1747665790682,0.64255567,103790.0,103780.0,0.28640179]
[1747665791096,1.08300625,103790.0,103780.0,0.00048045]
[1747665791941,0.89030946,103790.0,103780.0,0.23173754]
[1747665792349,1.08300625,103790.0,103780.0,0.21246704]
[1747665792588,1.09264108,103790.0,103780.0,0.21246704]
[1747665793070,1.09264108,103790.0,103780.0,0.22210243]
[1747665793269,1.09264108,103790.0,103780.0,0.21246704]
[1747665793816,1.09264108,103790.0,103780.0,0.21246723]
[1747665794017,1.09264108,103790.0,103780.0,0.2251855]
[1747665794256,1.09264108,103790.0,103780.0,0.23482098]
[1747665794438,1.09264108,103790.0,103780.0,0.2251855]
[1747665795040,1.08300643,103790.0,103780.0,0.2251855]
[1747665795601,1.08300643,103790.0,103780.0,0.00356314]
[1747665795823,1.05909598,103790.0,103780.0,0.00356314]
[1747665796316,1.05909598,103790.0,103780.0,0.19627849]
[1747665796741,1.05909598,103790.0,103780.0,0.20591425]
[1747665796946,1.05909598,103790.0,103780.0,0.20283156]
[1747665797478,1.05909598,103790.0,103780.0,0.01011621]
[1747665798341,1.05909598,103790.0,103780.0,0.00048045]
[1747665799098,0.85793598,103790.0,103780.0,0.00048045]
[1747665799302,1.26013598,103790.0,103780.0,0.1931958]
[1747665799510,1.26013598,103790.0,103780.0,0.00048045]
[1747665800159,1.29033598,103790.0,103780.0,0.00048045]
[1747665800552,1.42064538,103790.0,103780.0,0.00048045]
[1747665800752,6.63881473,103790.0,103780.0,0.00048045]
[1747665801090,6.61840338,103790.0,103780.0,0.00048045]
[1747665801675,1.42064538,103790.0,103780.0,0.00048045]
[1747665802638,6.67622338,103790.0,103780.0,0.00048045]
[1747665808155,0.21202709,103760.0,103750.0,0.0336953]
[1747665808368,1.37404764,103760.0,103750.0,0.0031953]
[1747665808583,1.50165704,103760.0,103750.0,0.0031953]
[1747665808792,6.69941504,103760.0,103750.0,0.0031953]
[1747665809018,7.11561504,103760.0,103750.0,0.0031953]
[1747665809449,0.20242895,103740.0,103730.0,0.14396848]
[1747665809657,0.60462895,103740.0,103730.0,0.14396848]
[1747665809982,0.60462895,103740.0,103730.0,0.14999241]
[1747665810778,0.60462895,103740.0,103730.0,0.15104045]
[1747665810968,0.40354895,103740.0,103730.0,0.15104045]
[1747665811171,0.59498966,103740.0,103730.0,0.15104045]
[1747665811482,0.62394763,103740.0,103730.0,0.14910077]
[1747665811773,0.61430843,103740.0,103730.0,0.14910077]
[1747665811921,0.61430843,103740.0,103730.0,0.07172759]
[1747665812276,0.91169753,103740.0,103730.0,0.07775123]
[1747665812415,1.05061753,103740.0,103730.0,0.01435137]
[1747665812624,1.25169753,103740.0,103730.0,0.01435137]
[1747665812845,1.25169753,103740.0,103730.0,0.00832759]
[1747665813072,1.25169753,103740.0,103730.0,0.04142759]
[1747665814263,1.25169753,103740.0,103730.0,0.00832759]
[1747665815999,1.34900693,103740.0,103730.0,0.00832759]
[1747665816559,1.50911633,103740.0,103730.0,0.00832759]
[1747665817091,1.50911633,103740.0,103730.0,0.00732759]
[1747665817491,1.50911633,103740.0,103730.0,0.00632759]
[1747665819150,6.70687433,103740.0,103730.0,0.00632759]
[1747665820348,6.70987433,103740.0,103730.0,0.00632759]
[1747665821117,7.40467433,103740.0,103730.0,0.00632759]
[1747665821317,7.40467433,103740.0,103730.0,4.804e-05]
[1747665824151,0.55212931,103710.0,103700.0,0.00014091]
[1747665824350,1.39690781,103710.0,103700.0,0.03058509]
[1747665824555,0.60012931,103710.0,103700.0,0.06078509]
[1747665825037,0.99256751,103710.0,103700.0,0.06078509]
[1747665825629,0.88787661,103710.0,103700.0,0.00028509]
[1747665825812,0.99256751,103710.0,103700.0,0.06368509]
[1747665826226,0.99256751,103710.0,103700.0,0.06468509]
[1747665826867,0.99256751,103710.0,103700.0,0.06868509]
[1747665827241,0.99256751,103710.0,103700.0,0.06468509]
[1747665827642,0.99256751,103710.0,103700.0,0.06768509]
[1747665828591,0.77836636,103710.0,103700.0,0.06768509]
[1747665828799,0.99556307,103710.0,103700.0,0.06768509]
[1747665828953,0.58748307,103710.0,103700.0,0.06768509]
[1747665829161,0.98960307,103710.0,103700.0,0.06768509]
[1747665829626,1.38430157,103710.0,103700.0,0.00428509]
[1747665831752,1.54541097,103710.0,103700.0,0.00428509]
[1747665832001,1.54541097,103710.0,103700.0,0.00328509]
[1747665832322,1.54541097,103710.0,103700.0,0.00028509]
[1747665832323,1.48161097,103710.0,103700.0,0.00028509]
[1747665832935,1.06201521,103710.0,103700.0,0.00028509]
[1747665833344,1.12811521,103710.0,103700.0,0.00028509]
[1747665834949,1.46811521,103710.0,103700.0,0.00028509]
[1747665835573,1.47011521,103710.0,103700.0,0.00028509]
[1747665837010,7.36267321,103710.0,103700.0,0.00028509]
[1747665837186,7.45998261,103710.0,103700.0,0.00028509]
[1747665838254,7.45898261,103710.0,103700.0,0.00028509]
[1747665838449,7.48219052,103710.0,103700.0,0.00028509]
[1747665839655,7.54001052,103710.0,103700.0,0.00028509]
[1747665839903,7.51880261,103710.0,103700.0,0.00028509]
[1747665840316,7.51780261,103710.0,103700.0,0.00028509]
[1747665840484,7.52080261,103710.0,103700.0,0.00028509]
[1747665841095,7.48780261,103710.0,103700.0,0.00337091]
[1747665841250,7.51960261,103710.0,103700.0,0.00337091]
[1747665841660,7.39049321,103710.0,103700.0,0.00337091]
[1747665842083,7.42109321,103710.0,103700.0,0.00337091]
[1747665842480,2.10177521,103710.0,103700.0,0.00337091]
[1747665843109,1.35969521,103710.0,103700.0,0.03457091]
[1747665843367,1.46438611,103710.0,103700.0,0.06627091]
[1747665843574,2.10177521,103710.0,103700.0,0.06627091]
[1747665843980,2.10177521,103710.0,103700.0,0.06946621]
[1747665847070,2.10177521,103710.0,103700.0,0.07051438]
[1747665847270,1.69969521,103710.0,103700.0,0.07051438]
[1747665847518,2.10173521,103710.0,103700.0,0.07051438]
[1747665850134,1.40230611,103710.0,103700.0,0.07051438]
[1747665850345,0.6375146,103710.0,103700.0,0.30194972]
[1747665850557,0.07735072,103710.0,103700.0,0.30194972]
[1747665850756,0.08699234,103710.0,103700.0,0.30797569]
[1747665850977,0.0197092,103710.0,103700.0,0.30373222]
[1747665851190,0.0177092,103710.0,103700.0,0.30373222]
[1747665851402,0.0187092,103710.0,103700.0,0.30373222]
[1747665851832,0.0187092,103710.0,103700.0,0.31044444]
[1747665852215,0.0157092,103710.0,103700.0,0.31044444]
[1747665852670,0.0167092,103710.0,103700.0,0.31044444]
[1747665853007,0.002,103710.0,103700.0,0.42229469]
[1747665853617,0.43551547,103740.0,103730.0,0.28592836]
[1747665853809,0.78515476,103740.0,103730.0,0.28592836]
[1747665855291,0.78515476,103740.0,103730.0,0.28901418]
[1747665855492,0.78615476,103740.0,103730.0,0.28901418]
[1747665855694,1.2820472,103740.0,103730.0,0.06728582]
[1747665855964,1.2820472,103740.0,103730.0,0.22839407]
[1747665856236,1.2820472,103740.0,103730.0,0.00628849]